bitfinex/quotes_SOLUSD_20250118
["timestamp","ask_amount","ask_price","bid_price","bid_amount"]
[1737243374642,0.71163053,263.56,263.46,29.82192949]
[1737243374957,29.82192949,263.53,263.42,29.82192949]
[1737243375151,53.59881349,263.51,263.4,29.82192949]
[1737243375350,0.71181066,263.5,263.43,29.82192949]
[1737243375555,29.82192949,263.51,263.41,29.82192949]
[1737243375848,23.776884,263.49,263.39,29.82192949]
[1737243376034,0.71187635,263.48,263.39,29.82192949]
[1737243376230,0.71187635,263.48,263.36,29.82192949]
[1737243376231,53.59881349,263.47,263.36,29.82192949]
[1737243376435,0.71193661,263.46,263.38,29.82192949]
[1737243376631,0.71193661,263.46,263.23,9.4972]
[1737243376632,5.0,263.34,263.2,11.71024861]
[1737243376836,29.82192949,263.26,263.2,11.71024861]
[1737243377050,29.82192949,263.21,263.2,11.71024861]
[1737243377274,0.71246208,263.27,263.2,4.98555321]
[1737243377759,0.71235565,263.28,263.21,29.82192949]
[1737243378054,32.2603,263.48,263.14,3.8001]
[1737243378055,0.03,263.27,263.24,34.8074827]
[1737243378237,0.03,263.27,263.22,8.78455321]
[1737243378439,0.03,263.27,263.23,29.82192949]
[1737243378639,0.03,263.27,263.26,4.98555321]
[1737243379256,0.03,263.27,263.23,34.8074827]
[1737243379447,0.03,263.27,263.21,33.62112949]
[1737243379648,29.82192949,263.32,263.22,0.56981855]
[1737243379955,0.71141104,263.31,263.22,0.56981855]
[1737243380155,0.71141104,263.31,263.23,4.98555321]
[1737243380338,0.71141104,263.31,263.23,3.7989]
[1737243380539,0.71141104,263.31,263.22,5.55537176]
[1737243380762,29.82192949,263.3,263.21,3.7992]
[1737243381058,0.71141104,263.29,263.21,33.62112949]
[1737243381459,0.71141104,263.29,263.22,4.98555321]
[1737243381660,12.06476346,263.3,263.21,3.7992]
[1737243381858,29.82192949,263.23,263.13,0.56982967]
[1737243382050,29.82192949,263.23,263.01,31.8072152]
[1737243382051,29.82192949,263.19,263.15,4.98555321]
[1737243382354,29.82192949,263.21,263.15,4.98555321]
[1737243382570,23.776884,263.16,263.07,4.98555321]
[1737243382858,29.82192949,263.08,262.99,29.82192949]
[1737243383057,29.82192949,263.08,262.93,11.71024861]
[1737243383058,29.82192949,263.0,262.93,16.69580182]
[1737243383246,29.82192949,262.94,262.93,11.71024861]
[1737243383439,5.0,263.19,262.98,4.98555321]
[1737243383641,5.0,263.25,262.98,4.98555321]
[1737243383852,3.7982,263.28,263.1,4.98555321]
[1737243384052,3.7973,263.34,263.18,4.98555321]
[1737243384266,5.0,263.3,263.15,4.98555321]
[1737243384568,29.82192949,263.17,263.09,4.98555321]
[1737243384747,29.82192949,263.17,262.93,5.0]
[1737243384748,5.0,263.05,262.92,4.98555321]
[1737243384940,10.3182,263.07,262.92,4.98555321]
[1737243385639,29.82192949,263.12,262.99,4.98555321]
[1737243385846,3.8006,263.11,262.94,4.98555321]
[1737243386050,29.82192949,263.02,262.94,4.98555321]
[1737243386553,29.82192949,263.0,262.92,5.55607413]
[1737243386743,29.82192949,262.94,262.83,4.98555321]
[1737243386944,29.82192949,262.98,262.86,34.8074827]
[1737243387153,29.82192949,262.98,262.89,4.98555321]
[1737243387362,29.82192949,262.93,262.92,4.98555321]
[1737243387562,29.82192949,262.95,262.92,4.98555321]
[1737243387955,29.82192949,262.99,262.88,29.82192949]
[1737243388159,29.82192949,263.01,262.92,4.98555321]
[1737243388356,29.82192949,263.01,262.87,3.804]
[1737243388357,29.82192949,263.08,262.98,4.98555321]
[1737243388565,29.82192949,263.05,262.94,29.82192949]
[1737243388755,29.82192949,263.03,262.93,4.98555321]
[1737243389162,29.82192949,263.01,262.93,4.98555321]
[1737243389369,29.82192949,263.01,262.91,4.98555321]
[1737243389574,29.82192949,263.01,262.93,4.98555321]
[1737243390068,29.82192949,262.97,262.94,0.063]
[1737243391258,29.82192949,262.99,262.94,0.063]
[1737243391462,29.82192949,263.01,262.94,0.063]
[1737243391662,29.82192949,263.05,262.94,5.04855321]
[1737243391867,29.82192949,263.07,262.99,4.98555321]
[1737243392175,33.62322949,263.07,262.95,29.82192949]
[1737243392381,29.82192949,263.05,262.94,5.04855321]
[1737243392554,33.62322949,263.07,262.97,29.82192949]
[1737243392760,29.82192949,263.03,262.94,0.063]
[1737243393079,29.82192949,262.96,262.94,0.063]
[1737243393560,29.82192949,262.98,262.94,0.063]
[1737243394077,33.62452949,262.98,262.94,0.063]
[1737243394460,29.82192949,263.0,262.94,0.063]
[1737243395070,29.82192949,263.04,262.99,4.98555321]
[1737243395268,29.82192949,263.08,263.01,4.98555321]
[1737243395468,29.82192949,263.08,262.94,0.063]
[1737243395469,29.82192949,263.04,262.94,0.063]
[1737243395784,29.82192949,263.0,262.94,0.063]
[1737243396072,33.62422949,263.0,262.94,0.063]
[1737243396270,29.82192949,262.96,262.94,0.063]
[1737243396674,5.0,262.89,262.73,0.063]
[1737243396878,29.82192949,262.79,262.73,0.063]
[1737243398072,33.62732949,262.79,262.73,0.063]
[1737243398374,33.62732949,262.79,262.67,0.063]
[1737243398375,29.82192949,262.75,262.67,0.063]
[1737243398575,29.82192949,262.7,262.67,0.063]
[1737243398771,3.8054,262.79,262.7,4.54855321]
[1737243399082,5.0,262.84,262.71,29.82192949]
[1737243399083,29.82192949,262.83,262.71,29.82192949]
[1737243399262,29.82192949,262.83,262.71,34.3704827]
[1737243399458,9.96074679,262.91,262.74,4.54855321]
[1737243399459,29.82192949,262.85,262.74,4.54855321]
[1737243399659,29.82192949,262.85,262.67,0.063]
[1737243399660,5.0,262.77,262.67,0.063]
[1737243399879,29.82192949,262.79,262.68,29.82192949]
[1737243400176,29.82192949,262.81,262.76,4.54855321]
[1737243400359,29.82192949,262.86,262.77,4.54855321]
[1737243400561,29.82192949,262.82,262.76,4.54855321]
[1737243400972,34.82192949,262.78,262.67,0.063]
[1737243401162,29.82192949,262.73,262.69,4.54855321]
[1737243401363,29.82192949,262.73,262.67,0.063]
[1737243401764,29.82192949,262.75,262.67,0.063]
[1737243402171,29.82192949,262.74,262.67,0.063]
[1737243402374,29.82192949,262.72,262.67,0.063]
[1737243402567,29.82192949,262.7,262.67,0.063]
[1737243402867,13.317,262.82,262.67,0.063]
[1737243402868,29.82192949,262.74,262.67,0.063]
[1737243403073,29.82192949,262.72,262.67,0.063]
[1737243403275,29.82192949,262.7,262.67,0.063]
[1737243403468,5.22,262.8,262.67,0.063]
[1737243403469,29.82192949,262.76,262.71,4.54855321]
[1737243403668,29.82192949,262.76,262.67,0.063]
[1737243403871,29.82192949,262.75,262.67,0.063]
[1737243404373,29.82192949,262.73,262.67,0.063]
[1737243404567,29.82192949,262.69,262.67,0.063]
[1737243405587,29.82192949,262.69,262.61,4.11155321]
[1737243405969,3.8069,262.68,262.61,4.11155321]
[1737243406372,3.8069,262.68,262.57,29.82192949]
[1737243406373,29.82192949,262.65,262.57,4.11155321]
[1737243407588,3.8074,262.64,262.57,4.11155321]
[1737243407786,29.82192949,262.6,262.54,4.11155321]
[1737243408082,29.82192949,262.58,262.54,4.11155321]
[1737243408283,29.82192949,262.58,262.47,29.82192949]
[1737243408284,29.82192949,262.6,262.55,4.11155321]
[1737243408487,29.82192949,262.6,262.53,4.11155321]
[1737243408688,29.82192949,262.6,262.5,3.8094]
[1737243408689,29.82192949,262.66,262.61,4.11155321]
[1737243408884,5.0,262.67,262.6,4.11155321]
[1737243409084,29.82192949,262.62,262.53,4.11155321]
[1737243409285,29.82192949,262.58,262.53,4.11155321]
[1737243409792,29.82192949,262.54,262.46,4.17455321]
[1737243409989,29.82192949,262.49,262.46,0.063]
[1737243410995,29.82192949,262.47,262.46,0.063]
[1737243411201,41.25192949,262.47,262.46,0.0001]
[1737243411488,29.82192949,262.47,262.46,0.0001]
[1737243411692,0.88844679,262.56,262.46,0.0001]
[1737243411693,29.82192949,262.49,262.46,0.0001]
[1737243411901,29.82192949,262.47,262.46,0.0001]
[1737243412395,41.25192949,262.47,262.46,0.0001]
[1737243412603,11.43,262.4,262.26,4.11155321]
[1737243412776,29.82192949,262.37,262.26,29.82192949]
[1737243412976,29.82192949,262.28,262.2,4.11155321]
[1737243413382,29.82192949,262.22,262.12,4.11155321]
[1737243413585,29.82192949,262.23,262.11,29.82192949]
[1737243413782,33.63532949,262.23,262.13,29.82192949]
[1737243414298,29.82192949,262.23,262.11,29.82192949]
[1737243414592,29.82192949,262.23,261.98,0.57232478]
[1737243414593,29.82192949,262.13,262.04,4.11155321]
[1737243414808,29.82192949,262.13,262.02,4.11155321]
[1737243414997,3.8131,262.26,262.14,4.11155321]
[1737243415293,0.88844679,262.43,262.24,33.9334827]
[1737243415598,0.88844679,262.43,262.19,0.063]
[1737243415599,5.0,262.46,262.31,4.11155321]
[1737243415802,5.0,262.46,262.19,0.063]
[1737243415803,13.3317,262.53,262.33,4.11155321]
[1737243415974,13.3317,262.53,262.41,4.11155321]
[1737243415975,3.809,262.53,262.41,4.11155321]
[1737243416180,0.88844679,262.44,262.27,4.11155321]
[1737243416378,20.0,262.47,262.28,37.7461827]
[1737243416379,29.82192949,262.38,262.28,37.7461827]
[1737243416597,29.82192949,262.37,262.26,4.11155321]
[1737243416798,29.82192949,262.4,262.31,4.11155321]
[1737243416989,29.82192949,262.4,262.32,4.11155321]
[1737243417189,29.82192949,262.4,262.29,29.82192949]
[1737243417500,29.82192949,262.4,262.3,4.11155321]
[1737243417699,3.8111,262.39,262.29,29.82192949]
[1737243417901,29.82192949,262.4,262.29,33.9334827]
[1737243418104,29.82192949,262.46,262.35,33.9334827]
[1737243418400,29.82192949,262.44,262.33,33.9334827]
[1737243418582,29.82192949,262.44,262.35,29.82192949]
[1737243418786,29.82192949,262.46,262.4,4.11155321]
[1737243418976,29.82192949,262.44,262.33,29.82192949]
[1737243419179,29.82192949,262.42,262.32,4.11155321]
[1737243419399,0.03,262.65,262.63,4.11155321]
[1737243419586,0.03,262.65,262.49,5.0]
[1737243419587,29.82192949,262.87,262.77,4.11155321]
[1737243419786,3.8037,262.9,262.82,29.82192949]
[1737243419990,3.8037,262.9,262.67,20.0]
[1737243419991,29.82192949,262.86,262.74,29.82192949]
[1737243420195,29.82192949,262.86,262.74,33.9334827]
[1737243420498,29.82192949,262.84,262.74,4.11155321]
[1737243420817,29.82192949,262.86,262.74,29.82192949]
[1737243420983,0.03,262.92,262.82,29.82192949]
[1737243421187,29.85192949,262.92,262.8,29.82192949]
[1737243421384,29.85192949,262.92,262.78,29.82192949]
[1737243421385,29.82192949,262.9,262.78,29.82192949]
[1737243421695,3.8035,262.91,262.8,33.9334827]
[1737243421899,0.03,262.92,262.91,4.11155321]
[1737243424406,0.03,262.92,262.9,29.82192949]
[1737243425107,0.03,262.92,262.88,29.82192949]
[1737243425303,0.03,262.92,262.91,33.9334827]
[1737243427101,70.98192949,263.12,262.91,33.9334827]
[1737243427102,2.0914793,263.3,263.19,4.11155321]
[1737243427308,10.1921,263.43,263.27,33.9334827]
[1737243427309,3.7972,263.35,263.27,33.9334827]
[1737243427513,39.31072949,263.47,263.27,33.9334827]
[1737243427691,29.82192949,263.49,263.27,33.9334827]
[1737243427995,29.82192949,263.51,263.41,4.11155321]
[1737243428196,0.03,263.54,263.46,4.11155321]
[1737243428394,0.03,263.54,263.45,29.82192949]
[1737243428395,0.03,263.54,263.48,4.11155321]
[1737243428585,3.7946,263.53,263.46,4.11155321]
[1737243428786,29.82192949,263.52,263.42,33.9334827]
[1737243429003,29.82192949,263.5,263.39,4.11155321]
[1737243429200,29.82192949,263.46,263.36,4.11155321]
[1737243429604,29.82192949,263.44,263.36,4.11155321]
[1737243429790,3.7969,263.37,263.3,4.11155321]
[1737243430392,3.7966,263.39,263.3,4.11155321]
[1737243430592,3.7966,263.39,263.33,4.11155321]
[1737243430802,29.82192949,263.38,263.3,4.11155321]
[1737243431201,29.82192949,263.38,263.28,4.11155321]
[1737243431402,29.82192949,263.38,263.3,4.11155321]
[1737243431911,29.82192949,263.36,263.27,4.11155321]
[1737243432301,29.82192949,263.36,263.29,4.11155321]
[1737243432497,29.82192949,263.3,263.19,33.9334827]
[1737243432699,29.82192949,263.28,263.19,4.11155321]
[1737243433017,29.82192949,263.38,263.16,4.11155321]
[1737243433018,29.82192949,263.22,263.16,4.11155321]
[1737243433494,5.38,263.31,263.13,4.11155321]
[1737243433495,29.82192949,263.2,263.13,4.11155321]
[1737243433808,29.82192949,263.16,263.11,4.11155321]
[1737243434020,29.82192949,263.16,263.09,4.11155321]
[1737243434206,29.82192949,263.16,263.08,4.11155321]
[1737243435209,3.7998,263.17,263.11,4.11155321]
[1737243435513,29.82192949,263.16,263.09,4.11155321]
[1737243435812,3.7998,263.17,263.13,4.11155321]
[1737243436508,3.7998,263.17,263.14,4.11155321]
[1737243437014,3.7995,263.19,263.14,4.11155321]
[1737243437205,29.82192949,263.18,263.1,4.11155321]
[1737243437399,9.4975,263.23,263.1,4.11155321]
[1737243437400,29.82192949,263.2,263.1,4.11155321]
[1737243437916,29.82192949,263.16,263.08,4.11155321]
[1737243438208,29.82192949,263.14,263.06,4.11155321]
[1737243438418,29.82192949,263.08,263.03,4.11155321]
[1737243438600,29.82192949,263.1,263.05,4.11155321]
[1737243438800,29.82192949,263.1,263.07,4.11155321]
[1737243439001,29.82192949,263.08,263.01,4.11155321]
[1737243439201,29.82192949,263.04,263.01,4.11155321]
[1737243439616,29.82192949,263.06,263.04,4.11155321]
[1737243439913,11.43,263.05,262.89,4.11155321]
[1737243440211,33.19534679,263.1,262.97,4.11155321]
[1737243440212,29.82192949,263.0,262.97,4.11155321]
[1737243440415,3.8008,263.1,263.08,4.11155321]
[1737243440818,29.82192949,263.09,263.04,4.11155321]
[1737243441110,29.82192949,263.09,263.06,4.11155321]
[1737243441624,29.82192949,263.16,263.13,4.11155321]
[1737243441921,33.62182949,263.16,263.15,4.11155321]
[1737243442223,33.62182949,263.16,263.13,4.11155321]
[1737243442405,29.82192949,263.23,263.15,4.11155321]
[1737243442607,29.82192949,263.23,263.12,29.82192949]
[1737243442608,29.82192949,263.33,263.28,4.11155321]
[1737243442817,29.85192949,263.29,263.19,4.11155321]
[1737243443015,29.85192949,263.29,263.15,4.11155321]
[1737243443016,13.3232,263.29,263.15,4.11155321]
[1737243443214,11.43,263.25,263.1,4.11155321]
[1737243443416,29.82192949,263.12,263.07,4.11155321]
[1737243443600,11.43,263.25,262.98,5.0]
[1737243443601,29.82192949,263.1,263.04,4.11155321]
[1737243444109,29.82192949,263.08,263.04,4.11155321]
[1737243444298,29.82192949,263.08,263.06,4.11155321]
[1737243444495,29.82192949,263.08,262.9,5.0]
[1737243444496,29.82192949,263.21,263.16,4.11155321]
[1737243444836,29.82192949,263.17,263.12,4.11155321]
[1737243445002,29.82192949,263.19,263.16,4.11155321]
[1737243445498,29.82192949,263.17,263.1,4.11155321]
[1737243445703,29.82192949,263.11,263.06,4.11155321]
[1737243445918,23.776884,263.08,263.06,4.11155321]
[1737243446220,34.82192949,263.25,263.04,4.11155321]
[1737243446221,23.776884,263.06,263.04,4.11155321]
[1737243446419,29.82192949,263.09,263.04,4.11155321]
[1737243446594,29.82192949,263.09,263.08,4.11155321]
[1737243446915,29.82192949,263.09,262.98,29.82192949]
[1737243446916,23.776884,263.08,263.06,4.11155321]
[1737243447120,27.578084,263.08,263.06,4.11155321]
[1737243447502,53.59881349,263.07,263.03,4.11155321]
[1737243447719,53.59881349,263.04,263.03,4.11155321]
[1737243448930,23.776884,263.0,262.83,2.6708]
[1737243449116,53.59881349,262.84,262.83,0.063]
[1737243449622,53.59881349,262.84,262.83,0.0001]
[1737243450433,65.02881349,262.84,262.83,0.0001]
[1737243450622,11.43,262.82,262.58,29.82192949]
[1737243450819,29.82192949,262.73,262.62,29.82192949]
[1737243451027,29.82192949,262.75,262.64,29.82192949]
[1737243451201,29.82192949,262.73,262.62,29.82192949]
[1737243451524,29.82192949,262.73,262.64,29.82192949]
[1737243451817,29.82192949,262.73,262.62,29.82192949]
[1737243452203,9.5119,262.83,262.66,29.82192949]
[1737243452204,29.82192949,262.77,262.66,29.82192949]
[1737243452406,29.82192949,262.75,262.64,29.82192949]
[1737243452607,29.82192949,262.77,262.66,29.82192949]
[1737243452806,29.82192949,262.75,262.64,29.82192949]
[1737243453020,29.82192949,262.75,262.58,3.8083]
[1737243453021,29.82192949,262.83,262.71,29.82192949]
[1737243453222,29.82192949,262.85,262.75,29.82192949]
[1737243453524,3.804,262.88,262.71,29.82192949]
[1737243453525,29.82192949,262.83,262.71,29.82192949]
[1737243453703,29.82192949,262.83,262.73,29.82192949]
[1737243453904,3.804,262.88,262.75,29.82192949]
[1737243454105,29.82192949,262.87,262.75,29.82192949]
[1737243454428,3.804,262.88,262.66,5.0]
[1737243454429,29.82192949,262.85,262.73,29.82192949]
[1737243454729,3.8045,262.84,262.73,29.82192949]
[1737243454927,29.82192949,262.74,262.63,29.82192949]
[1737243455223,29.82192949,262.76,262.65,29.82192949]
[1737243455404,3.8045,262.84,262.71,29.82192949]
[1737243455607,29.82192949,262.8,262.71,29.82192949]
[1737243455822,23.776884,262.77,262.69,29.82192949]
[1737243456432,29.82192949,262.8,262.69,29.82192949]
[1737243456735,3.8053,262.79,262.69,29.82192949]
[1737243457214,53.59881349,262.78,262.67,29.82192949]
[1737243457422,29.82192949,262.76,262.66,5.0]
[1737243457620,23.776884,262.75,262.66,5.0]
[1737243458023,23.776884,262.75,262.65,34.82192949]
[1737243458523,29.82192949,262.78,262.67,29.82192949]
[1737243458724,62.768,262.99,262.75,29.82192949]
[1737243458921,29.82192949,262.89,262.78,29.82192949]
[1737243459128,29.82192949,262.88,262.77,29.82192949]
[1737243459434,29.82192949,262.86,262.77,29.82192949]
[1737243459611,29.82192949,262.86,262.75,29.82192949]
[1737243459812,29.82192949,262.8,262.69,29.82192949]
[1737243460206,23.776884,262.79,262.69,29.82192949]
[1737243460406,29.82192949,262.82,262.71,29.82192949]
[1737243460612,23.776884,262.81,262.71,33.62822949]
[1737243461231,23.776884,262.83,262.73,29.82192949]
[1737243461436,29.82192949,262.86,262.75,29.82192949]
[1737243461624,29.82192949,262.88,262.77,29.82192949]
[1737243462015,23.776884,262.87,262.77,29.82192949]
[1737243462423,27.581084,262.87,262.77,29.82192949]
[1737243462629,27.581084,262.87,262.65,19.0365]
[1737243462630,23.776884,262.83,262.74,3.8059]
[1737243462816,23.776884,262.81,262.71,29.82192949]
[1737243463313,29.82192949,262.78,262.69,29.82192949]
[1737243463518,13.3146,262.87,262.69,29.82192949]
[1737243463519,29.82192949,262.8,262.69,29.82192949]
[1737243463827,29.82192949,262.82,262.73,29.82192949]
[1737243464027,29.82192949,262.84,262.73,29.82192949]
[1737243464232,23.776884,262.83,262.73,29.82192949]
[1737243464416,23.776884,262.83,262.74,3.806]
[1737243464816,23.806884,262.83,262.74,3.806]
[1737243466045,1.0,262.81,262.74,3.806]
[1737243467039,23.776884,262.8,262.71,29.82192949]
[1737243467224,23.776884,262.77,262.67,33.62892949]
[1737243467540,29.82192949,262.8,262.69,29.82192949]
[1737243467840,23.776884,262.79,262.69,29.82192949]
[1737243468044,4.8051,262.81,262.69,29.82192949]
[1737243468045,1.0,262.81,262.77,29.82192949]
[1737243468832,1.0,262.81,262.73,29.82192949]
[1737243469026,3.8053,262.79,262.69,29.82192949]
[1737243469226,53.59881349,262.8,262.69,33.62852949]
[1737243469628,23.776884,262.73,262.62,29.82192949]
[1737243469850,29.82192949,262.77,262.66,29.88492949]
[1737243470043,29.82192949,262.77,262.68,29.82192949]
[1737243470233,29.82192949,262.77,262.66,3.87]
[1737243470234,30.82192949,262.81,262.7,29.82192949]
[1737243470436,1.0,262.81,262.72,29.82192949]
[1737243470636,53.59881349,262.8,262.7,29.82192949]
[1737243471323,23.776884,262.77,262.68,29.82192949]
[1737243471833,23.776884,262.75,262.66,29.88492949]
[1737243472038,23.776884,262.69,262.66,0.063]
[1737243472223,29.82192949,262.68,262.66,0.063]
[1737243472734,29.82192949,262.71,262.66,0.063]
[1737243472933,29.82192949,262.73,262.66,3.8701]
[1737243473145,23.776884,262.72,262.66,3.8701]
[1737243473823,29.82192949,262.71,262.66,0.063]
[1737243474223,23.776884,262.7,262.66,0.063]
[1737243475047,33.62812949,262.73,262.66,0.063]
[1737243475449,9.5143,262.77,262.66,0.063]
[1737243475450,33.62752949,262.77,262.66,3.8701]
[1737243475748,23.776884,262.76,262.66,3.8701]
[1737243476132,29.85192949,262.83,262.73,29.82192949]
[1737243476333,33.65662949,262.83,262.73,29.82192949]
[1737243476541,0.03,262.8,262.73,29.82192949]
[1737243477047,29.85192949,262.83,262.73,29.82192949]
[1737243477048,0.03,262.83,262.79,29.82192949]
[1737243477358,0.03,262.83,262.81,29.82192949]
[1737243477539,0.03,262.83,262.82,3.8048]
[1737243478531,29.82192949,263.04,262.86,5.0]
[1737243478754,29.82192949,263.09,262.98,29.82192949]
[1737243478940,29.82192949,263.09,262.88,5.0]
[1737243478941,29.82192949,262.99,262.88,29.82192949]
[1737243479149,29.82192949,262.97,262.88,29.82192949]
[1737243479447,5.0,262.92,262.66,0.063]
[1737243479645,2.7084,262.94,262.73,29.82192949]
[1737243479646,29.82192949,262.85,262.73,29.82192949]
[1737243479854,0.57067336,262.84,262.76,29.82192949]
[1737243480033,29.82192949,262.86,262.74,29.82192949]
[1737243480232,5.1,262.96,262.74,29.82192949]
[1737243480233,23.776884,262.83,262.74,29.82192949]
[1737243480436,0.57067336,262.82,262.74,5.0]
[1737243480634,7.7084,263.06,262.8,29.82192949]
[1737243480635,29.82192949,262.92,262.8,29.82192949]
[1737243480848,29.82192949,262.99,262.8,29.82192949]
[1737243480849,29.82192949,262.9,262.8,29.82192949]
[1737243481056,29.82192949,262.9,262.67,5.57075831]
[1737243481057,23.776884,262.86,262.76,29.82192949]
[1737243481244,0.57067336,262.85,262.8,29.82192949]
[1737243481438,29.82192949,262.92,262.8,29.82192949]
[1737243481640,3.8031,262.94,262.74,0.57084381]
[1737243481641,0.57067336,262.91,262.84,29.82192949]
[1737243482042,29.82192949,262.96,262.74,5.57084381]
[1737243482043,0.57067336,262.93,262.88,29.82192949]
[1737243482539,29.82192949,262.94,262.84,29.82192949]
[1737243482745,24.34755736,262.93,262.86,29.82192949]
[1737243483460,23.776884,262.91,262.86,29.82192949]
[1737243483634,0.57067336,262.92,262.9,29.82192949]
[1737243483835,4.37257336,263.02,262.9,29.82192949]
[1737243484040,23.776884,263.01,262.92,29.82192949]
[1737243484337,0.57067336,263.0,262.91,5.0]
[1737243484550,29.82192949,263.14,262.93,5.0]
[1737243484551,4.37107336,263.13,262.93,5.0]
[1737243484748,4.37107336,263.13,263.02,29.82192949]
[1737243485143,29.82192949,263.06,262.95,29.82192949]
[1737243485332,23.776884,263.04,262.95,29.82192949]
[1737243485537,27.578884,263.02,262.95,29.82192949]
[1737243485742,0.57067336,263.01,262.95,29.82192949]
[1737243486035,0.57067336,263.01,262.93,29.82192949]
[1737243486452,29.82192949,263.0,262.9,29.82192949]
[1737243486657,0.57067336,262.99,262.88,29.82192949]
[1737243487047,0.57067336,262.99,262.9,29.82192949]
[1737243487849,53.59881349,262.98,262.88,29.82192949]
[1737243488156,0.57067336,262.97,262.86,29.82192949]
[1737243488452,0.57067336,262.97,262.7,5.85573283]
[1737243488453,20.0,262.84,262.7,5.85573283]
[1737243488641,29.82192949,262.74,262.7,5.85573283]
[1737243488839,29.82192949,262.72,262.7,5.85573283]
[1737243489039,0.57067336,262.71,262.66,0.063]
[1737243489239,29.82192949,262.68,262.66,0.063]
[1737243489439,0.57067336,262.67,262.66,0.063]
[1737243489652,0.57067336,262.69,262.66,0.063]
[1737243490045,0.57067336,262.71,262.66,0.063]
[1737243490951,0.57067336,262.72,262.66,0.063]
[1737243491348,0.57067336,262.72,262.66,29.88492949]
[1737243491555,0.57067336,262.75,262.66,29.88492949]
[1737243492149,0.57067336,262.75,262.68,29.82192949]
[1737243492452,0.57067336,262.76,262.68,29.82192949]
[1737243492655,30.39260285,262.76,262.66,29.88492949]
[1737243493239,29.82192949,262.74,262.66,0.063]
[1737243493435,30.39260285,262.73,262.66,0.063]
[1737243493755,0.57067336,262.73,262.67,29.82192949]
[1737243493959,0.57067336,262.76,262.72,29.82192949]
[1737243494160,0.57067336,262.8,262.72,29.82192949]
[1737243494662,0.57067336,262.8,262.76,29.82192949]
[1737243494861,0.57067336,262.85,262.78,29.82192949]
[1737243495557,0.57067336,262.85,262.8,29.82192949]
[1737243495745,0.57067336,262.88,262.82,29.82192949]
[1737243496153,0.57067336,262.91,262.82,29.82192949]
[1737243496354,0.57067336,262.91,262.84,29.82192949]
[1737243496861,29.82192949,263.08,262.9,34.82192949]
[1737243497163,0.57067336,263.07,262.99,29.82192949]
[1737243497353,0.57067336,263.07,262.9,5.0]
[1737243497354,3.8022,263.0,262.9,29.82192949]
[1737243497551,0.57067336,262.99,262.9,29.82192949]
[1737243497860,33.62442949,262.98,262.88,29.82192949]
[1737243498043,0.57067336,262.97,262.9,29.82192949]
[1737243498243,0.57067336,262.97,262.86,3.8043]
[1737243498244,0.57067336,262.97,262.86,29.82192949]
[1737243499350,0.57067336,262.97,262.88,29.82192949]
[1737243499667,0.57067336,262.97,262.9,29.82192949]
[1737243499869,0.57067336,262.97,262.94,29.82192949]
[1737243500044,0.60067336,263.01,262.94,29.82192949]
[1737243500244,0.60067336,263.01,262.95,29.82192949]
[1737243500444,0.03,263.01,262.95,29.82192949]
[1737243500946,0.03,263.01,262.97,29.82192949]
[1737243501653,0.03,263.01,262.99,29.82192949]
[1737243501852,0.57067336,263.15,263.05,5.0]
[1737243502163,0.57067336,263.25,263.14,29.82192949]
[1737243502370,29.82192949,263.2,263.1,29.82192949]
[1737243502571,0.57067336,263.19,263.13,29.82192949]
[1737243502869,0.57067336,263.22,263.13,29.82192949]
[1737243503450,0.57067336,263.22,262.99,29.82192949]
[1737243503451,0.57067336,263.22,263.2,29.82192949]
[1737243503651,0.60067336,263.27,263.2,29.82192949]
[1737243503852,4.39907336,263.27,263.22,29.82192949]
[1737243504153,4.39907336,263.27,263.2,29.82192949]
[1737243504674,4.39907336,263.27,263.22,29.82192949]
[1737243504972,0.60067336,263.27,263.24,29.82192949]
[1737243505373,0.03,263.27,263.26,29.82192949]
[1737243507678,0.60067336,263.27,263.22,29.82192949]
[1737243507855,0.60067336,263.27,263.2,29.82192949]
[1737243508361,0.60067336,263.27,263.17,29.82192949]
[1737243508571,29.82192949,263.24,263.14,29.82192949]
[1737243508779,29.82192949,263.2,263.1,29.82192949]
[1737243508957,29.82192949,263.2,263.02,0.57007809]
[1737243508958,29.82192949,263.18,263.08,29.82192949]
[1737243509154,0.57067336,263.17,263.02,3.8019]
[1737243509368,0.03,263.27,263.18,3.7996]
[1737243509569,0.03,263.27,263.26,29.82192949]
[1737243509754,29.82192949,263.5,263.28,20.0]
[1737243510079,29.82192949,263.5,263.28,50.39148077]
[1737243510264,3.7949,263.51,263.28,50.39148077]
[1737243510265,29.82192949,263.48,263.28,30.39148077]
[1737243510457,29.82192949,263.46,263.28,30.39148077]